Cogmind - Beta 16 @@@ ROGUE MODE // 2025.12.05 @ 20:53:19 Player: JuustuToug Result: Destroyed by P-80 Master with Gamma Rifle Performance ------------- Evolutions (8) 4000 Regions Visited (28) 5600 Robots Destroyed (207) 1035 Value Destroyed (6432) 6432 Prototype IDs (54) 1080 Alien Tech Used (5) 1000 Bonus (11913) 11913 TOTAL SCORE: 31060 Bonus ------- High Alert Combat Kills 71 Follower Combat Kills 2047 Forged Quantum Companion 2000 Registered with UFD 300 Met Optimus in HQ 500 Met Zhirov 300 Met Warlord at Base 500 MAIN.C Attacked Warlord 500 Built Enhanced Grunts 300 A7 Reached Mainframe 300 Met R17 at Cetus 500 Found Hidden Lab 3000 Used Core Reset Matrix 3000 Pursued by Intercept 500 Friendly Fire -1905 Cogmind --------- Core Integrity 0/1450 Matter 285/300 Energy 100/100 System Corruption 15% Temperature Cool (0) Movement Core (50) Location -2/Quarantine Parts ------- > --- POWER (2) -------- (None) > --- PROPULSION (6) --- (None) > --- UTILITY (13) ----- Machine Analyzer Experimental Optical Array Advanced Signal Interpreter Advanced Melee Analysis Suite Improved Hacking Suite > --- WEAPON (2) ------- Superquantum Companion > --- INVENTORY (5) ---- Particle Reactor Experimental ECM Suite Sigix Terminator (1) Peak State ------------ > --- POWER ------------ Micro Antimatter Reactor Light Quantum Reactor > --- PROPULSION ------- Field Propulsion Array Improved Diametric Drive Improved Diametric Drive Improved Diametric Drive Improved Diametric Drive > --- UTILITY ---------- Structural Scanner Machine Analyzer Experimental Optical Array Long-range Sensor Array Advanced Signal Interpreter Advanced Melee Analysis Suite Advanced Melee Analysis Suite Core Analyzer Improved Transmission Jammer Medium Regenerative Plating Graphene Brace Improved Hacking Suite Quantum Router > --- WEAPON ----------- Fusion Bomb Launcher Superquantum Companion > --- INVENTORY -------- Particle Reactor Gravity Neutralizer Long-range Sensor Array Experimental ECM Suite [Rating: 163] Favorites ----------- Power Light Nuclear Core Engine Improved Ion Engine Power Core Light Nuclear Core Reactor Micro Antimatter Reactor Propulsion Improved Aluminum Leg Treads Light Treads Leg Improved Aluminum Leg Wheel Armored Wheel Hover Unit Combat Gravmag System Flight Unit Improved Diametric Drive Utility Large Storage Unit Device Structural Scanner Storage Large Storage Unit Processor Machine Analyzer Hackware Hacking Suite Protection Improved Light Armor Plating Weapon Companion Sword Energy Gun Heavy Particle Gun Energy Cannon Beam Cannon Ballistic Gun Gauss Rifle Ballistic Cannon Light Cannon Launcher Mini Grenade Launcher Special Weapon Remote Datajack Slashing Weapon Companion Sword Build | -11 -10 -9 -8 -8 -8 -8 -6 -6 -6 -6 -6 -5 -5 -5 -5 -4 -4 -4 -4 -4 -4 -4 -3 -3 -3 -3 -2 -2 ------- Run | Yrd Mat Mat Mat Sto Rec Scr Fac Ext Cet Arc Hub Fac Upp Upp Zhi Pro Fac Was Fac Upp Upp War Pro Res Arm Lab Res Qua Slots Evolved 16 | . . 2 2 . . . 4 . . . . 2 . . . . 2 . . . . . . 2 . . 2 . Power 1 | . . . . . . . 1 . . . . . . . . . . . . . . . . . . . . . Propulsion 4 | . . 1 . . . . 1 . . . . . . . . . 1 . . . . . . . . . 1 . Utility 11 | . . 1 2 . . . 2 . . . . 2 . . . . 1 . . . . . . 2 . . 1 . Weapon . | . . . . . . . . . . . . . . . . . . . . . . . . . . . . . Parts Attached 275 | 9 12 30 12 12 1 11 4 24 10 5 15 18 3 3 3 5 7 1 5 4 1 8 1 9 25 5 9 23 Power 47 | 2 1 6 2 3 . 3 1 4 2 1 1 4 . . 1 1 . . 1 . 1 2 . 3 4 . 3 1 Engine 17 | 2 . 6 . . . 2 1 2 . . . 1 . . . . . . . . 1 1 . . . . 1 . Core 14 | . 1 . 2 3 . 1 . 2 . 1 . 3 . . . 1 . . . . . . . . . . . . Reactor 16 | . . . . . . . . . 2 . 1 . . . 1 . . . 1 . . 1 . 3 4 . 2 1 Propulsion 80 | 2 2 12 2 1 1 2 . 10 3 1 7 8 . . 1 1 2 . 1 1 . 3 1 4 10 1 1 3 Treads 10 | 2 2 6 . . . . . . . . . . . . . . . . . . . . . . . . . . Leg 38 | . . 5 2 1 1 2 . 10 3 1 7 6 . . . . . . . . . . . . . . . . Wheel 1 | . . . . . . . . . . . . . . . 1 . . . . . . . . . . . . . Hover 7 | . . . . . . . . . . . . . . . . . 1 . 1 . . . . 1 4 . . . Flight 24 | . . 1 . . . . . . . . . 2 . . . 1 1 . . 1 . 3 1 3 6 1 1 3 Utility 112 | 2 4 4 4 4 . 4 3 7 4 3 7 6 3 3 1 3 5 1 3 3 . 2 . 2 9 2 5 18 Device 49 | 1 2 3 1 1 . 2 . 1 . 1 3 1 1 . . 1 3 1 3 2 . . . 1 3 . 5 13 Storage 4 | 1 2 . . . . . 1 . . . . . . . . . . . . . . . . . . . . . Processor 28 | . . 1 1 1 . 1 2 1 . . 2 4 . 2 . 1 2 . . 1 . 1 . . 5 . . 3 Hackware 7 | . . . . . . . . 1 . 1 1 1 1 . . . . . . . . . . . . 1 . 1 Protection 24 | . . . 2 2 . 1 . 4 4 1 1 . 1 1 1 1 . . . . . 1 . 1 1 1 . 1 Artifact . | . . . . . . . . . . . . . . . . . . . . . . . . . . . . . Weapon 36 | 3 5 8 4 4 . 2 . 3 1 . . . . . . . . . . . . 1 . . 2 2 . 1 Energy Gun 10 | . 2 3 . 2 . . . . . . . . . . . . . . . . . 1 . . 1 1 . . Energy Cannon 4 | . . 1 2 . . . . . 1 . . . . . . . . . . . . . . . . . . . Ballistic Gun 10 | 3 1 2 2 1 . 1 . . . . . . . . . . . . . . . . . . . . . . Ballistic Cannon 3 | . 2 1 . . . . . . . . . . . . . . . . . . . . . . . . . . Launcher 2 | . . . . . . . . 1 . . . . . . . . . . . . . . . . 1 . . . Special Weapon 3 | . . . . . . . . 2 . . . . . . . . . . . . . . . . . 1 . . Impact Weapon . | . . . . . . . . . . . . . . . . . . . . . . . . . . . . . Slashing Weapon 4 | . . 1 . 1 . 1 . . . . . . . . . . . . . . . . . . . . . 1 Piercing Weapon . | . . . . . . . . . . . . . . . . . . . . . . . . . . . . . Special Melee Weapon . | . . . . . . . . . . . . . . . . . . . . . . . . . . . . . Unidentified Prototypes 26 | . . 3 1 3 . 1 . . . . . . . . 3 . . . . . . 1 . . 3 5 2 4 Corrupted Parts 2 | . . . . . . . . 1 . . . . . . . . . . . . . . . . . . . 1 System Corruption 2 | . . . . . . . . 1 . . . . . . . . . . . . . . . . . . . 1 Parts Lost 98 | . 7 2 1 1 . . 1 12 3 . 13 18 . . . . . . 2 . . . . 12 3 . 1 22 Power 20 | . 2 . . . . . 1 2 1 . 3 3 . . . . . . . . . . . 3 1 . 1 3 Propulsion 39 | . 2 . . . . . . 5 2 . 4 10 . . . . . . 2 . . . . 7 1 . . 6 Utility 33 | . 1 1 . . . . . 4 . . 6 5 . . . . . . . . . . . 2 1 . . 13 Weapon 6 | . 2 1 1 1 . . . 1 . . . . . . . . . . . . . . . . . . . . Highest Loss Streak 13 | . 4 1 1 1 . . 1 6 2 . 5 13 . . . . . . 1 . . . . 9 2 . 1 12 To Critical Strikes 3 | . 1 . . . . . . . 2 . . . . . . . . . . . . . . . . . . . Average Backups 12 | 1 9 14 14 14 14 14 16 19 19 19 16 11 4 5 5 4 4 2 3 3 4 4 5 5 4 5 4 4 Power 1 | . 1 1 1 1 1 . 1 1 1 1 . . 1 1 1 . . . 1 1 1 1 1 1 . 1 1 1 Propulsion 2 | . 1 3 2 2 2 2 4 5 4 4 4 1 . . . . . . . . . . . . 1 2 . . Utility 4 | . 1 3 4 5 5 5 5 6 9 10 8 7 2 2 2 2 2 . . . 1 1 2 1 1 1 2 2 Weapon 4 | . 5 6 7 6 6 4 3 3 3 3 3 2 1 1 1 1 1 1 1 1 1 1 1 1 . 1 1 . Tool/Special . | . . . . . . . . . . . . . . . . . . . . . . . . . . . . . Unused Backups 62 | . . 13 9 6 . 7 . 5 4 2 1 4 . 3 1 . . . 1 1 . . . . 3 . . 2 Power 7 | . . 3 1 1 . . . 1 . . . . . . . . . . . . . . . . . . . 1 Propulsion 14 | . . 5 . 2 . 1 . 3 1 . 1 . . . . . . . . . . . . . 1 . . . Utility 22 | . . 1 1 2 . 3 . 1 3 2 . 4 . 1 1 . . . 1 1 . . . . 1 . . . Weapon 19 | . . 4 7 1 . 3 . . . . . . . 2 . . . . . . . . . . 1 . . 1 Tool/Special . | . . . . . . . . . . . . . . . . . . . . . . . . . . . . . Average Slot Usage (%) 92 | . 98 99 99 99 100 99 84 88 85 90 87 77 51 63 69 76 81 89 85 81 87 91 94 80 84 88 89 81 Engine 4 | . 12 10 2 . . 5 6 2 3 . . 1 . . . . . . . . 3 4 5 . . . . . Core 2 | . 1 . 6 9 9 3 . 3 . 4 2 4 . . . 3 5 5 2 4 5 5 5 2 . . . . Reactor 1 | . . . . . . . . . 2 6 5 . . . . . . . 2 . . . . 1 8 9 7 5 Treads 5 | . 27 19 . . . . . . . . . . . . . . . . . . . . . . . . . . Leg 14 | . . 13 27 26 27 27 25 26 25 26 25 19 . . . . . . . . . . . . . . . . Flight 3 | . . . . . . . . . . . . . 11 11 11 15 15 21 18 14 15 19 26 17 7 19 20 16 Device 12 | . 13 20 10 9 9 9 13 6 . 1 6 10 . . . . 3 11 18 19 21 17 15 20 19 14 16 18 Storage 6 | . 14 11 9 9 9 9 6 6 6 6 6 4 . . . . . . . . . . . . . . . . Processor 16 | . . 1 16 18 18 17 19 19 20 20 17 24 29 35 32 32 34 29 26 26 26 26 26 23 29 30 26 24 Hackware 1 | . . . . . . . . 4 6 6 4 . 4 5 5 2 . . . . . . . . . 2 4 6 Protection 5 | . . . 8 9 9 9 6 7 12 11 9 2 . 4 12 15 12 10 6 5 5 7 10 6 . 7 8 3 Energy Gun 2 | . 1 5 . 5 9 8 . . . . . . . . . . . . . . . . . . . . . . Energy Cannon 1 | . . 4 9 3 . . . . . . . . . . . . . . . . . . . . . . . . Ballistic Gun 4 | . 12 7 8 7 9 8 . . . . . . . . . . . . . . . . . . . . . . Ballistic Cannon 2 | . 14 3 . . . . . . . . . . . . . . . . . . . . . . . . . . Slashing Weapon 2 | . . . . 1 . . 6 6 6 6 6 5 5 5 5 5 5 5 5 5 5 5 5 4 4 4 4 3 Peak Build Rating 163 | 7 12 19 30 35 35 43 56 68 80 88 91 82 40 44 51 63 80 85 92 79 83 92 92 115 143 149 155 163 Average Rating 50 | 5 9 15 26 32 35 39 54 60 71 83 84 69 35 41 43 58 72 83 84 74 81 81 89 93 116 135 152 139 On Entrance 61 | . 7 10 15 29 34 35 40 56 63 80 88 58 32 36 43 44 62 80 85 62 79 83 81 92 60 134 139 155 Avg Prop Armor Cover (%) 8 | . . . . . . . . . . . . 11 . . . . 9 8 8 8 8 7 . 2 6 . 1 8 Naked Turns . | . . . . . . . . . . . . . . . . . . . . . . . . . . . . . Heaviest Build 86 | 14 30 36 44 44 40 40 58 66 69 74 86 79 7 10 11 13 13 14 25 15 18 19 19 34 45 37 39 39 Greatest Support 104 | 40 40 66 36 41 41 44 59 70 83 83 104 99 8 8 8 15 24 24 25 20 20 36 36 41 66 37 58 58 Greatest Overweight (x) 4 | . 1 1 1 1 . . . 1 . . 1 3 . 1 1 . . . . . . 1 . 1 2 . . 4 Average Overweight (x) . | . . . 1 . . . . . . . . . . . . . . . . . . . . . . . . . Largest Inventory Capacity 20 | 8 15 15 15 15 15 15 20 20 20 20 20 20 5 5 5 5 5 5 5 5 5 5 5 5 5 5 5 5 Average Capacity 13 | 7 14 15 15 15 15 15 18 20 20 20 20 18 5 5 5 5 5 5 5 5 5 5 5 5 5 5 5 5 Most Carried 20 | 3 15 15 15 15 15 15 20 20 20 20 20 15 5 5 5 5 5 2 5 5 5 5 5 5 5 5 5 5 Average Carried 12 | 2 9 14 14 14 14 14 16 19 19 19 16 11 4 4 4 4 3 2 3 3 4 4 5 4 4 4 4 4 Final Capacity 20 | 8 15 15 15 15 15 15 20 20 20 20 20 5 5 5 5 5 5 5 5 5 5 5 5 5 5 5 5 5 Final Carried 20 | 3 15 15 15 15 14 15 20 19 20 20 13 4 5 5 5 5 2 2 5 4 4 5 5 5 5 5 5 4 Class Distribution -------------------- 44% | Mutant 25% | Scavenger-Mutant 6% | Infiltrator-Ninja 3% | Derelict-Ninja 3% | Commander-Mutant 3% | Assassin 3% | Scientist-Ninja Dominant Class ---------------- Mutant | -10/Materials Mutant | -9/Materials Mutant | -8/Materials Commander-Mutant | -8/Storage Mutant | -8/Recycling Mutant | -8/Scraptown Assassin | -6/Factory Scavenger-Mutant | -6/Extension Scavenger-Mutant | -6/Cetus Scavenger-Mutant | -6/Archives Scavenger-Mutant | -6/Hub_04(d) Scavenger-Mutant | -5/Factory Sprinter | -5/Upper Caves Sprinter | -5/Upper Caves Mutant | -5/Zhirov Derelict-Sprinter | -4/Proximity Caves Derelict-Scout | -4/Factory Derelict-Scout | -4/Waste Scientist-Ninja | -4/Factory Scientist-Ninja | -4/Upper Caves Derelict-Ninja | -4/Upper Caves Commander-Ninja | -4/Warlord Derelict-Ninja | -3/Proximity Caves Derelict-Ninja | -3/Research Infiltrator-Ninja | -3/Armory Hacker-Ninja | -3/Lab Hacker-Ninja | -2/Research Hacker-Assassin | -2/Quarantine Resources | -11 -10 -9 -8 -8 -8 -8 -6 -6 -6 -6 -6 -5 -5 -5 -5 -4 -4 -4 -4 -4 -4 -4 -3 -3 -3 -3 -2 -2 ----------- Run | Yrd Mat Mat Mat Sto Rec Scr Fac Ext Cet Arc Hub Fac Upp Upp Zhi Pro Fac Was Fac Upp Upp War Pro Res Arm Lab Res Qua Matter Collected 5656 | 180 568 1246 338 533 46 133 45 420 160 82 200 154 40 30 84 66 . . 161 75 18 80 10 94 343 . 205 345 Remotely 414 | . 43 355 . . . . . . . . . . . . . . . . . . . . . . . . . 16 Salvage Created 9417 | 30 596 1897 819 1150 161 . 350 537 42 375 514 680 55 64 289 . . . 161 40 53 . 41 402 487 . 242 432 Parts 506 | 3 49 113 54 52 11 . 16 32 15 24 26 34 2 2 1 . . . 8 1 . . 1 13 24 . 14 11 Haulers Intercepted 12 | . 2 5 1 4 . . . . . . . . . . . . . . . . . . . . . . . . Recyclers Shooed 16 | . 1 7 3 2 . . 1 1 . . 1 . . . . . . . . . . . . . . . . . Parts Field Recycled . | . . . . . . . . . . . . . . . . . . . . . . . . . . . . . Retrieved Matter . | . . . . . . . . . . . . . . . . . . . . . . . . . . . . . Parts Self-Destructed . | . . . . . . . . . . . . . . . . . . . . . . . . . . . . . Prevented . | . . . . . . . . . . . . . . . . . . . . . . . . . . . . . Parts Restored . | . . . . . . . . . . . . . . . . . . . . . . . . . . . . . Kills | -11 -10 -9 -8 -8 -8 -8 -6 -6 -6 -6 -6 -5 -5 -5 -5 -4 -4 -4 -4 -4 -4 -4 -3 -3 -3 -3 -2 -2 ------- Run | Yrd Mat Mat Mat Sto Rec Scr Fac Ext Cet Arc Hub Fac Upp Upp Zhi Pro Fac Was Fac Upp Upp War Pro Res Arm Lab Res Qua Combat Hostiles Destroyed 115 | . 15 31 10 11 2 . 3 8 . 1 8 7 . . . . . . . . . . . 6 10 . . 3 Melee 38 | . . . . . . . 3 5 . 1 8 7 . . . . . . . . . . . 4 7 . . 3 Guns 39 | . 11 18 3 5 2 . . . . . . . . . . . . . . . . . . . . . . . Cannons 30 | . 4 13 7 6 . . . . . . . . . . . . . . . . . . . . . . . . AOE 6 | . . . . . . . . 3 . . . . . . . . . . . . . . . . 3 . . . Classes Destroyed 16 | 1 7 4 . . . . . 2 . . 1 . 1 . . . . . . . . . . . . . . . Worker 19 | . 2 3 2 2 . . 1 1 . . 1 1 . . . . . . 1 . . . . . . . 3 2 Builder 5 | . . 1 4 . . . . . . . . . . . . . . . . . . . . . . . . . Tunneler 2 | 1 . . 1 . . . . . . . . . . . . . . . . . . . . . . . . . Hauler 12 | . 2 5 1 4 . . . . . . . . . . . . . . . . . . . . . . . . Recycler 20 | . 1 4 2 3 1 . 1 1 . . . 3 . . . . . . 1 . . . . 1 . . 1 1 Mechanic 4 | . . 1 2 1 . . . . . . . . . . . . . . . . . . . . . . . . Operator 17 | . 3 1 . . . . . 1 . 9 1 . . . . . . . . . . . . . . . 1 1 Watcher 11 | . 2 5 1 1 . . . . . . . . . . . . . . 1 . . . . . . . . 1 Swarmer 30 | . 9 4 3 1 . . . . . . . 3 . . . . . . . . . . . 5 5 . . . Grunt 40 | . 6 14 5 8 . . 3 2 . . 2 . . . . . . . . . . . . . . . . . Brawler 1 | . . . . . . . . . . . 1 . . . . . . . . . . . . . . . . . Duelist 5 | . . 3 . . . . . . . . 1 . . . . . . . . . . . . . 1 . . . Sentry 27 | . . 10 2 3 2 . . 4 . 1 2 . . . . . . . . . . . . 1 2 . . . Hunter 5 | . . . . . . . . 1 . . 1 3 . . . . . . . . . . . . . . . . Programmer 5 | . . . . . . . . 1 . . 1 1 . . . . . . . . . . . . 2 . . . Tracker 1 | . . . . . . . . . . . . . . . . . . . . . . . . . . . . 1 Combat Programmer 2 | . . . . . . . . . . . . . . . . . . . . . . . . . . . . 2 Decomposer 10 | . . . . . . . . . . . . . . 3 . . . . . 2 3 . 2 . . . . . Samaritan 1 | . . . . . . . . . . . . . 1 . . . . . . . . . . . . . . . Best Kill Streak 8 | 1 4 8 6 5 1 . 3 4 . 5 1 3 . . . . . . 2 . . . . 3 5 . 2 3 Combat Bots Only 5 | . 3 3 4 3 1 . 3 3 . 1 1 3 . . . . . . . . . . . 3 5 . . 3 Max Kills in Single Turn 2 | 1 1 2 2 2 1 . 1 2 1 1 1 2 1 1 . . . . 1 1 1 . 1 1 2 . 1 1 Gunslinging . | . . . . . . . . . . . . . . . . . . . . . . . . . . . . . Exploded 2 | . . . . . . . . 1 . . . . . . . . . . . . . . . . 2 . . . Melee 2 | . . . . . . . 1 1 . 1 1 2 . . . . . . . . . . . 1 1 . . 1 Uniques/NPCs Destroyed 1 | . . . . . . . . . 1 . . . . . . . . . . . . . . . . . . . A7 (-6/Cetus) Combat | -11 -10 -9 -8 -8 -8 -8 -6 -6 -6 -6 -6 -5 -5 -5 -5 -4 -4 -4 -4 -4 -4 -4 -3 -3 -3 -3 -2 -2 -------- Run | Yrd Mat Mat Mat Sto Rec Scr Fac Ext Cet Arc Hub Fac Upp Upp Zhi Pro Fac Was Fac Upp Upp War Pro Res Arm Lab Res Qua Hostile Shots Fired 1912 | . 138 157 67 78 10 . 26 256 52 28 395 166 . . . 2 2 . 20 . . 8 3 158 89 3 12 242 Missed 700 | . 24 39 19 26 2 . 5 118 19 8 141 53 . . . 1 . . 10 . . 6 2 86 36 2 3 100 Deflected 5 | . . . . . . . . . . . . . . . . . . . . . . . . 1 2 . 1 1 Hits 1212 | . 114 118 48 52 8 . 21 138 33 20 254 113 . . . 1 2 . 10 . . 2 1 72 53 1 9 142 Melee 24 | . . 5 . . . . . . . . 19 . . . . . . . . . . . . . . . . . Projectile 1188 | . 114 113 48 52 8 . 21 138 33 20 235 113 . . . 1 2 . 10 . . 2 1 72 53 1 9 142 AOE 3 | . . . . . . . . 2 . . . 1 . . . . . . . . . . . . . . . . Critical Strikes 56 | . 1 3 4 3 . . 2 1 6 . 9 5 . . . 1 . . 1 . . . 1 4 4 . 1 10 Actively Blocked 12 | . . . . . . . . . . . . . . . . 1 . . . . . . . . 1 . . 10 Damage Taken 19478 | . 1071 1604 604 800 126 . 384 1946 814 489 2629 2603 . 7 . 21 47 . 173 7 . 36 18 1402 1270 24 248 3155 Core 4732 | . 193 254 38 50 . . 38 348 123 73 240 926 . 7 . 15 17 . 62 7 . 17 . 515 359 . 6 1444 Absorbed by Shields 514 | . . . . . . . . 154 84 . 208 . . . . . . . . . . . . . 68 . . . Redirected to Shielding 227 | . . . . . . . . . . . . . . . . 6 6 . . . . . . 166 49 . . . Ignored by Resistances 507 | . . . . . . . . . . . 314 130 . . . . . . . . . . . . 63 . . . Regen/Repaired (Parts) 933 | . 130 48 . 149 . . . . 119 144 91 . . . . . . . . . . 10 . . . . 49 193 Core Remaining (%) 49 | 100 22 36 . . . 84 . . . . 3 . . . . 5 . . . . . . 91 . . 55 . . Volleys Fired 398 | 3 83 152 43 79 8 . . 24 1 . . . . . . . . . . . . . . . 3 1 . 1 Largest 2 | 2 2 2 2 2 2 . . 1 1 . . . . . . . . . . . . . . . 1 1 . 1 Hottest 118 | 40 85 88 83 118 80 . . 30 90 . . . . . . . . . . . . . . . 52 40 . 52 Shots Fired 757 | 6 163 300 85 156 17 . . 24 1 . . . . . . . . . . . . . . . 3 1 . 1 Gun 491 | 6 127 175 43 122 17 . . . . . . . . . . . . . . . . . . . . 1 . . Cannon 238 | . 36 125 42 34 . . . . 1 . . . . . . . . . . . . . . . . . . . Launcher 9 | . . . . . . . . 5 . . . . . . . . . . . . . . . . 3 . . 1 Special 19 | . . . . . . . . 19 . . . . . . . . . . . . . . . . . . . . Kinetic 454 | 6 150 168 43 78 9 . . . . . . . . . . . . . . . . . . . . . . . Thermal 272 | . 12 131 42 78 8 . . . 1 . . . . . . . . . . . . . . . . . . . Explosive 9 | . . . . . . . . 5 . . . . . . . . . . . . . . . . 3 . . 1 Electromagnetic 3 | . 1 1 . . . . . . . . . . . . . . . . . . . . . . . 1 . . Robot Hit Streak 17 | 2 10 17 15 15 8 . . 9 . . . . . . . . . . . . . . . . . . . . Robot Miss Streak 7 | 2 7 5 3 3 1 . . 1 . . . . . . . . . . . . . . . . . . . . Penetration Max 1 | . . . 1 . . . . . . . . . . . . . . . . . . . . . . . . . Secondary Targets 2 | . 2 . . . . . . . . . . . . . . . . . . . . . . . . . . . Max Gunslinging Chain 1 | . 1 . . . . . . . . . . . . . . . . . . . . . . . . . . . Autonomous 9 | . . . . . . . . . . . . . . . . . . . . . . . . 4 1 . . 4 Shots Hit Robots 704 | 3 94 206 61 95 13 . 18 35 11 19 52 19 3 3 7 . . . 4 2 3 . 2 15 17 . 5 17 Core Hits 295 | 2 37 76 30 38 5 . 8 28 4 4 16 13 . 1 2 . . . 2 1 . . 1 5 12 . 3 7 Critical Kills 1 | . . . 1 . . . . . . . . . . . . . . . . . . . . . . . . . Critical Parts Destroyed 1 | . 1 . . . . . . . . . . . . . . . . . . . . . . . . . . . Critical Strikes 21 | . 3 7 1 3 1 . . . . . 2 2 . . . . . . . . . . . . 2 . . . Burn 12 | . 2 6 . 3 1 . . . . . . . . . . . . . . . . . . . . . . . Destroy 2 | . 1 . 1 . . . . . . . . . . . . . . . . . . . . . . . . . Blast 1 | . . 1 . . . . . . . . . . . . . . . . . . . . . . . . . . Melee Attacks 366 | . . 5 4 5 . . 23 21 14 21 72 24 5 8 7 1 3 . 17 3 4 . 7 31 40 3 22 26 Impact . | . . . . . . . . . . . . . . . . . . . . . . . . . . . . . Slashing 366 | . . 5 4 5 . . 23 21 14 21 72 24 5 8 7 1 3 . 17 3 4 . 7 31 40 3 22 26 Piercing . | . . . . . . . . . . . . . . . . . . . . . . . . . . . . . Sneak Attacks 67 | . . . 1 . . . 5 5 8 12 2 4 3 3 . . . . 2 2 3 . 2 3 4 . 5 3 Combat Hostiles 5 | . . . . . . . . 1 . . . . . . . . . . . . . . . . 4 . . . Follow-up Attacks 5 | . . . . . . . . . . . 2 1 . . 2 . . . . . . . . . . . . . Damage Inflicted 24059 | 32 1103 3263 1467 2113 222 . 876 1656 588 1551 2077 969 297 278 670 . . . 325 184 305 . 221 1389 1813 . 725 1935 Guns 4856 | 32 781 1821 582 1418 222 . . . . . . . . . . . . . . . . . . . . . . . Cannons 3998 | . 309 1442 812 684 . . . . . . . . . . . . . . . . . . . 347 100 . . 304 Explosions 1113 | . . . . . . . . 729 . . . . . . . . . . . . . . . . 384 . . . Melee 13876 | . . . 63 . . . 876 893 588 1551 1933 965 297 278 670 . . . 325 184 305 . 221 1042 1329 . 725 1631 Ramming 216 | . 13 . 10 11 . . . 34 . . 144 4 . . . . . . . . . . . . . . . . Kinetic 4311 | 32 942 1830 582 810 115 . . . . . . . . . . . . . . . . . . . . . . . Thermal 3774 | . 130 1433 812 1292 107 . . . . . . . . . . . . . . . . . . . . . . . Explosive 1113 | . . . . . . . . 729 . . . . . . . . . . . . . . . . 384 . . . Electromagnetic 18 | . 18 . . . . . . . . . . . . . . . . . . . . . . . . . . . Impact . | . . . . . . . . . . . . . . . . . . . . . . . . . . . . . Slashing 13876 | . . . 63 . . . 876 893 588 1551 1933 965 297 278 670 . . . 325 184 305 . 221 1042 1329 . 725 1631 Piercing . | . . . . . . . . . . . . . . . . . . . . . . . . . . . . . Phasic 751 | . . . . . . . . . . . . . . . . . . . . . . . . 347 100 . . 304 Highest Corruption 15 | . . . 2 2 2 . . 4 4 4 4 9 9 9 9 9 . 5 5 5 5 5 . . 2 2 1 15 Average Corruption 3 | . . . 1 2 2 . . 3 4 3 2 2 9 9 9 9 . 5 5 5 5 5 . . 1 2 1 5 Corruption Purged 6 | . . . . . . . . . . 4 1 . . . . . . . . . . . . . . . . 1 Corruption Blocked . | . . . . . . . . . . . . . . . . . . . . . . . . . . . . . Effects 148 | . . . 7 20 9 . . 22 19 8 5 3 4 6 7 5 . . 10 6 3 . . . 1 4 1 8 Message Errors 39 | . . . . 6 4 . . 6 6 . 1 1 1 2 1 1 . . 4 2 1 . . . . 3 . . Matter Fused 30 | . . . 2 6 2 . . 3 2 3 . 1 . 1 1 1 . . 2 1 1 . . . . . 1 3 Heat Flow Errors 19 | . . . . 2 2 . . 2 2 2 . . . 1 3 2 . . . 1 . . . . . . . 2 Energy Discharges 27 | . . . 2 5 . . . 6 6 1 . . 2 . . . . . 1 2 . . . . . 1 . 1 Parts Rejected 4 | . . . . . . . . . 1 . 2 . . . . . . . 1 . . . . . . . . . Parts Fused 1 | . . . . . . . . . 1 . . . . . . . . . . . . . . . . . . . Data Loss (minor) 14 | . . . 2 . . . . 1 . 1 2 . 1 1 2 . . . 2 . 1 . . . 1 . . . Data Loss (major) 5 | . . . 1 . . . . 2 . . . . . 1 . 1 . . . . . . . . . . . . Misfires 1 | . . . . . 1 . . . . . . . . . . . . . . . . . . . . . . . Alerts 5 | . . . . . . . . 2 1 1 . 1 . . . . . . . . . . . . . . . . Misdirections 2 | . . . . . . . . . . . . . . . . . . . . . . . . . . . . 2 Weapon Failures 1 | . . . . 1 . . . . . . . . . . . . . . . . . . . . . . . . Overload Shots 5 | . . . . 4 . . . . 1 . . . . . . . . . . . . . . . . . . . Effects 1 | . . . . . . . . . 1 . . . . . . . . . . . . . . . . . . . Energy Bleed 1 | . . . . . . . . . 1 . . . . . . . . . . . . . . . . . . . Overflow Damage 3279 | . 2 5 10 7 . . 81 202 . 556 106 82 245 161 193 . . . 77 71 263 . 100 133 175 . 217 593 Projectiles 158 | . 2 5 10 7 . . . . . . . . . . . . . . . . . . . 32 50 . . 52 Explosions 18 | . . . . . . . . 18 . . . . . . . . . . . . . . . . . . . . Melee 3103 | . . . . . . . 81 184 . 556 106 82 245 161 193 . . . 77 71 263 . 100 101 125 . 217 541 Knockbacks 16 | . 4 11 . . . . . . . . 1 . . . . . . . . . . . . . . . . . Impact 1 | . . . . . . . . . . . 1 . . . . . . . . . . . . . . . . . Kinetic 15 | . 4 11 . . . . . . . . . . . . . . . . . . . . . . . . . . Secondary . | . . . . . . . . . . . . . . . . . . . . . . . . . . . . . Self-Inflicted Damage 63 | . . . . . . . . . . . . 1 . . . . . . . . . . . . 62 . . . Shots 2 | . . . . . . . . . . . . . . . . . . . . . . . . . 2 . . . Rammed 5 | . 3 . . . . . . . . . . 2 . . . . . . . . . . . . . . . . Targets Rammed 26 | . 4 . 3 5 . . . 2 . . 10 2 . . . . . . . . . . . . . . . . Kicked 20 | . . . 3 5 . . . 2 . . 10 . . . . . . . . . . . . . . . . . Crushed 1 | . 1 . . . . . . . . . . . . . . . . . . . . . . . . . . . Highest Temperature 296 | . 40 58 48 296 208 . . 130 254 192 12 22 . 260 245 182 . . . 87 . 7 4 13 91 66 50 152 Average Temperature 56 | . 11 11 13 105 77 . . 43 101 93 6 22 . 132 99 86 . . . 55 . 4 2 5 20 26 15 41 Received Heat Transfer 3387 | . 174 564 297 477 36 . 207 412 124 81 607 111 . . . . 9 . . . . 9 . 132 111 . 18 18 Effects 1 | . . . . 1 . . . . . . . . . . . . . . . . . . . . . . . . Energy Bleed 1 | . . . . 1 . . . . . . . . . . . . . . . . . . . . . . . . Siege Activations . | . . . . . . . . . . . . . . . . . . . . . . . . . . . . . Martial Activations . | . . . . . . . . . . . . . . . . . . . . . . . . . . . . . Shielding Activations . | . . . . . . . . . . . . . . . . . . . . . . . . . . . . . Robots Disrupted 2 | . . . . . . . 1 . . . . . . . . . . . . . . . . 1 . . . . Combat Hostiles 1 | . . . . . . . . . . . . . . . . . . . . . . . . 1 . . . . Robots Corrupted . | . . . . . . . . . . . . . . . . . . . . . . . . . . . . . Combat Hostiles . | . . . . . . . . . . . . . . . . . . . . . . . . . . . . . Parts Fried . | . . . . . . . . . . . . . . . . . . . . . . . . . . . . . Impact Corruptions 1 | . . . . . . . . . . . 1 . . . . . . . . . . . . . . . . . Robots Melted 1 | . . 1 . . . . . . . . . . . . . . . . . . . . . . . . . . Combat Hostiles . | . . . . . . . . . . . . . . . . . . . . . . . . . . . . . Parts Melted 13 | . . 7 1 5 . . . . . . . . . . . . . . . . . . . . . . . . Heat Transferred 8179 | . 444 3959 1258 2222 296 . . . . . . . . . . . . . . . . . . . . . . . Parts Sabotaged . | . . . . . . . . . . . . . . . . . . . . . . . . . . . . . Parts Stolen . | . . . . . . . . . . . . . . . . . . . . . . . . . . . . . Parts Stripped 13 | . . . . . . . . . . . . . . . . . . . . . . . . 13 . . . . Power Chain Reactions . | . . . . . . . . . . . . . . . . . . . . . . . . . . . . . Alert | -11 -10 -9 -8 -8 -8 -8 -6 -6 -6 -6 -6 -5 -5 -5 -5 -4 -4 -4 -4 -4 -4 -4 -3 -3 -3 -3 -2 -2 ------- Run | Yrd Mat Mat Mat Sto Rec Scr Fac Ext Cet Arc Hub Fac Upp Upp Zhi Pro Fac Was Fac Upp Upp War Pro Res Arm Lab Res Qua Maximum Alert Level 2 | . . 2 1 2 1 . . 1 . . . . . . . . 2 1 . . . . . . 1 . . . Low Security (%) 78 | 100 100 53 63 44 95 . 100 71 100 100 100 100 . . . . . . 100 . . . . 100 90 . 100 100 Level 1 13 | . . 11 36 48 4 . . 28 . . . . . . . . . 100 . . . . . . 9 . . . Level 2 8 | . . 34 . 6 . . . . . . . . . . . . 100 . . . . . . . . . . . Level 3 . | . . . . . . . . . . . . . . . . . . . . . . . . . . . . . Level 4 . | . . . . . . . . . . . . . . . . . . . . . . . . . . . . . Level 5 . | . . . . . . . . . . . . . . . . . . . . . . . . . . . . . High Security . | . . . . . . . . . . . . . . . . . . . . . . . . . . . . . Max Security . | . . . . . . . . . . . . . . . . . . . . . . . . . . . . . Peak Influence 615 | 5 170 582 257 420 208 . 40 332 157 71 50 70 . . . . 615 215 143 . . . . 147 277 . 152 199 Initial 615 | . . 24 232 84 160 . . 2 141 . . . . . . . 615 215 143 . . . . 6 72 . . 81 Average 146 | . 90 259 165 231 171 . 8 137 64 28 10 10 . . . . 599 213 93 . . . . 37 116 . 64 135 Influence Increases 7968 | 5 621 1125 448 1023 291 . 89 888 289 165 268 215 . . 10 45 651 . 91 . . 54 30 407 630 . 241 382 Destroy 0b10 Robot/C 3200 | . 300 620 200 440 40 . 60 520 160 80 160 140 . . . . . . . . . 40 . 120 260 . . 60 Destroy 0b10 Robot/NC 490 | 5 50 100 65 65 5 . 10 20 10 45 10 20 . . 10 . . . 15 . . . . 5 5 . 25 25 Destroy Leader 748 | . 68 210 44 112 . . 10 90 . . 60 30 . . . . . . 2 . . . . 20 70 . . 32 Allied During Kill 546 | . . . . 187 . . . 212 94 39 . . . . . . . . . . . 14 . . . . . . Successful Hack 434 | . 37 34 49 25 21 . 7 13 . . 3 4 . . . . . . 7 . . . . 26 27 . 93 88 Select Force Hacks 210 | . . . . . 210 . . . . . . . . . . . . . . . . . . . . . . . Disable Machine 390 | . 15 30 15 120 . . . . 15 . . . . . . . . . 15 . . . . . 120 . 15 45 Destroy Structure 345 | . 1 11 15 14 . . 2 18 10 1 5 6 . . . . 6 . 22 . . . . 26 88 . 48 72 Advance Influence 600 | . . . . . . . . . . . . . . . . . 600 . . . . . . . . . . . Partial Spotted 120 | . . . . . . . . . . . 15 . . . . . 30 . . . . . . 15 60 . . . Lose Combat Pursuer 885 | . 150 120 60 60 15 . . 15 . . 15 15 . . . 45 15 . 30 . . . 30 195 . . 60 60 Influence Decreases 7947 | 5 564 632 798 812 545 157 84 640 542 165 268 163 52 . 10 20 60 411 272 24 . 8 66 278 499 270 96 506 Entered New Map 1944 | . . 33 318 116 251 157 . 3 112 . . . 20 . . . 10 401 62 10 . . 46 4 67 270 . 64 Time Decay 4742 | 5 494 579 470 526 294 . 74 387 282 145 189 119 32 . 10 20 50 10 190 14 . 8 20 154 362 . 86 222 Lost Part 753 | . 70 20 10 10 . . 10 100 30 . 79 44 . . . . . . 20 . . . . 110 30 . . 220 Lost Ally 508 | . . . . 160 . . . 150 118 20 . . . . . . . . . . . . . 10 40 . 10 . Squads Dispatched 45 | . 2 3 1 4 . . 2 4 . . 7 . . . . . 1 . 6 . . . . 4 5 . 2 4 Investigation 11 | . . 1 1 1 . . 1 . . . . . . . . . 1 . 4 . . . . 1 1 . . . Extermination 8 | . . . . . . . 1 . . . 1 . . . . . . . 1 . . . . . 3 . 1 1 Reinforcement 20 | . 2 2 . 2 . . . 4 . . 3 . . . . . . . 1 . . . . 3 1 . 1 1 Assault . | . . . . . . . . . . . . . . . . . . . . . . . . . . . . . Garrison 4 | . . . . 1 . . . . . . 3 . . . . . . . . . . . . . . . . . Intercept 2 | . . . . . . . . . . . . . . . . . . . . . . . . . . . . 2 Searches Triggered . | . . . . . . . . . . . . . . . . . . . . . . . . . . . . . Construction Impeded 2 | . . . . . . . . 1 . . 1 . . . . . . . . . . . . . . . . . Haulers Reinforced . | . . . . . . . . . . . . . . . . . . . . . . . . . . . . . Active Scanning Responses . | . . . . . . . . . . . . . . . . . . . . . . . . . . . . . Cargo Convoy Interrupts . | . . . . . . . . . . . . . . . . . . . . . . . . . . . . . Stealth | -11 -10 -9 -8 -8 -8 -8 -6 -6 -6 -6 -6 -5 -5 -5 -5 -4 -4 -4 -4 -4 -4 -4 -3 -3 -3 -3 -2 -2 --------- Run | Yrd Mat Mat Mat Sto Rec Scr Fac Ext Cet Arc Hub Fac Upp Upp Zhi Pro Fac Was Fac Upp Upp War Pro Res Arm Lab Res Qua Distress Signals 28 | . 4 5 . 3 . . . 3 2 . 1 2 . . . . . . . . . . 2 5 1 . . . Communications Jammed 66 | . . . . . . . . . . . . . . . . . . . . . . . . 52 6 . . 8 Distress Signals 66 | . . . . . . . . . . . . . . . . . . . . . . . . 52 6 . . 8 Times Spotted 379 | . 35 52 20 32 2 . 4 30 12 9 20 27 . . . 6 1 3 9 . . 8 2 35 37 1 10 24 Peak Tracking Total 16 | . 5 5 5 6 2 . 3 9 5 2 14 16 . . . 4 1 3 5 . . 6 2 15 6 1 6 13 Tactical Retreats 43 | . 6 5 3 3 1 . . 1 . . 1 1 . . . 1 1 . 2 . . . 2 5 5 . 3 3 ECM-based Alert Blocks 14 | . . . . . . . . . . . . . . . . . . . . . . . . . 14 . . . Traps | -11 -10 -9 -8 -8 -8 -8 -6 -6 -6 -6 -6 -5 -5 -5 -5 -4 -4 -4 -4 -4 -4 -4 -3 -3 -3 -3 -2 -2 ------- Run | Yrd Mat Mat Mat Sto Rec Scr Fac Ext Cet Arc Hub Fac Upp Upp Zhi Pro Fac Was Fac Upp Upp War Pro Res Arm Lab Res Qua Traps Triggered 20 | . 3 2 4 . . . . 1 . . 1 . . . . . 1 . . . . . . 2 3 . 2 1 Indirectly . | . . . . . . . . . . . . . . . . . . . . . . . . . . . . . Trap Hack Attempts . | . . . . . . . . . . . . . . . . . . . . . . . . . . . . . Triggered . | . . . . . . . . . . . . . . . . . . . . . . . . . . . . . Disarmed . | . . . . . . . . . . . . . . . . . . . . . . . . . . . . . Reprogrammed . | . . . . . . . . . . . . . . . . . . . . . . . . . . . . . Reused . | . . . . . . . . . . . . . . . . . . . . . . . . . . . . . Traps Extracted . | . . . . . . . . . . . . . . . . . . . . . . . . . . . . . Installed . | . . . . . . . . . . . . . . . . . . . . . . . . . . . . . Triggered . | . . . . . . . . . . . . . . . . . . . . . . . . . . . . . Machines | -11 -10 -9 -8 -8 -8 -8 -6 -6 -6 -6 -6 -5 -5 -5 -5 -4 -4 -4 -4 -4 -4 -4 -3 -3 -3 -3 -2 -2 ---------- Run | Yrd Mat Mat Mat Sto Rec Scr Fac Ext Cet Arc Hub Fac Upp Upp Zhi Pro Fac Was Fac Upp Upp War Pro Res Arm Lab Res Qua Machines Disabled 31 | . 1 2 1 8 . . . 2 3 . . . . . . . . . 1 . . . . . 8 1 1 3 Max in Single Turn 2 | . 1 1 1 1 . . . 1 1 . . . . . . . . . 1 . . . . . 2 1 1 1 Garrison Access 1 | . . . . . . . . . . . . . . . . . . . . . . . . . . . . 1 Energy Cycler 2 | . . . . . . . . 2 . . . . . . . . . . . . . . . . . . . . Machines Repaired . | . . . . . . . . . . . . . . . . . . . . . . . . . . . . . Machines Dismantled . | . . . . . . . . . . . . . . . . . . . . . . . . . . . . . Machines Sabotaged . | . . . . . . . . . . . . . . . . . . . . . . . . . . . . . Overloaded Fab Kills . | . . . . . . . . . . . . . . . . . . . . . . . . . . . . . Hacking | -11 -10 -9 -8 -8 -8 -8 -6 -6 -6 -6 -6 -5 -5 -5 -5 -4 -4 -4 -4 -4 -4 -4 -3 -3 -3 -3 -2 -2 --------- Run | Yrd Mat Mat Mat Sto Rec Scr Fac Ext Cet Arc Hub Fac Upp Upp Zhi Pro Fac Was Fac Upp Upp War Pro Res Arm Lab Res Qua Machines Accessed 125 | . 9 15 11 7 13 4 5 4 1 . 3 1 . 2 4 . 1 . 10 . . 5 . 3 6 1 8 12 Terminals 67 | . 6 10 7 4 6 . 4 3 1 . 3 1 . . . . . . 5 . . . . 1 3 . 4 9 Fabricators 8 | . . . . . . . 1 . . . . . . . . . . . 2 . . . . 1 3 . 1 . Repair Stations 9 | . 1 2 1 2 . . . 1 . . . . . . . . . . 1 . . . . . . . . 1 Recycling Units 15 | . 2 1 2 1 7 . . . . . . . . . . . . . 1 . . . . . . . 1 . Scanalyzers 9 | . . 2 1 . . . . . . . . . . . . . 1 . 1 . . . . 1 . . 2 1 Garrison Access 1 | . . . . . . . . . . . . . . . . . . . . . . . . . . . . 1 Total Hacks 383 | . 34 44 37 24 31 22 9 15 2 . 8 4 . 4 17 . 8 . 27 . . 7 . 7 11 1 26 45 Successful 211 | . 18 21 18 15 17 22 3 7 . . 2 2 . 4 17 . 5 . 15 . . 7 . 3 4 1 11 19 Failed 169 | . 16 22 19 9 14 . 6 8 2 . 6 2 . . . . 2 . 12 . . . . 4 7 . 15 25 Catastrophic 24 | . 3 3 1 2 1 . 1 2 1 . . . . . . . . . 3 . . . . . 1 . 2 4 Database Lockouts 3 | . . 1 . . . . . . . . . . . . . . 1 . . . . . . . . . . 1 Manual 201 | . 23 28 28 13 31 . 5 9 1 . 6 4 . . . . . . 11 . . . . 2 1 . 9 30 Terminals 223 | . 27 30 27 16 24 . 7 13 2 . 8 4 . . . . . . 11 . . . . 2 5 . 15 32 Fabricators 15 | . . . . . . . 2 . . . . . . . . . . . 4 . . . . 2 6 . 1 . Repair Stations 26 | . 2 5 3 6 . . . 2 . . . . . . . . . . 2 . . . . . . . . 6 Recycling Units 24 | . 5 2 4 2 7 . . . . . . . . . . . . . 2 . . . . . . . 2 . Scanalyzers 43 | . . 7 3 . . . . . . . . . . . . . 8 . 8 . . . . 3 . . 8 6 Garrison Access 1 | . . . . . . . . . . . . . . . . . . . . . . . . . . . . 1 Terminal Hacks 78 | . 6 1 2 4 2 22 1 2 . . . . . 4 17 . . . 1 . . 7 . . 2 1 2 4 Record 37 | . . . . . . 21 . . . . . . . 3 5 . . . . . . 5 . . 1 1 . 1 Part Schematic 5 | . . . . . 1 . . . . . . . . . 4 . . . . . . . . . . . . . Robot Analysis 4 | . . . . . . . . . . . . . . . 4 . . . . . . . . . . . . . Prototype ID Bank 10 | . 2 . 1 2 . . . . . . . . . . 4 . . . . . . . . . . . . 1 Open Door 10 | . . . . 1 . 1 1 1 . . . . . 1 . . . . . . . 2 . . 1 . 1 1 Level Access Points 2 | . 1 . . . . . . 1 . . . . . . . . . . . . . . . . . . . . Branch Access Points 2 | . . . . . . . . . . . . . . . . . . . 1 . . . . . . . 1 . Terminal Index 6 | . 1 1 1 1 1 . . . . . . . . . . . . . . . . . . . . . . 1 Locate Traps 1 | . 1 . . . . . . . . . . . . . . . . . . . . . . . . . . . Zone Layout 1 | . 1 . . . . . . . . . . . . . . . . . . . . . . . . . . . Fabricator Hacks 7 | . . . . . . . 2 . . . . . . . . . . . 4 . . . . . 1 . . . Load Schematic 4 | . . . . . . . 1 . . . . . . . . . . . 2 . . . . . 1 . . . Build 3 | . . . . . . . 1 . . . . . . . . . . . 2 . . . . . . . . . Repair Station Hacks 17 | . 2 4 1 4 . . . 2 . . . . . . . . . . . . . . . . . . . 4 Scan Component 9 | . 1 2 1 2 . . . 1 . . . . . . . . . . . . . . . . . . . 2 Repair 8 | . 1 2 . 2 . . . 1 . . . . . . . . . . . . . . . . . . . 2 Recycling Unit Hacks 6 | . 1 1 2 1 . . . . . . . . . . . . . . 1 . . . . . . . . . Retrieve Components 6 | . 1 1 2 1 . . . . . . . . . . . . . . 1 . . . . . . . . . Scanalyzer 24 | . . 4 1 . . . . . . . . . . . . . 5 . 7 . . . . 2 . . 4 1 Insert Component 4 | . . 1 . . . . . . . . . . . . . . 2 . 1 . . . . . . . . . Analyze 3 | . . 1 . . . . . . . . . . . . . . 1 . 1 . . . . . . . . . Retrieve Study 17 | . . 2 1 . . . . . . . . . . . . . 2 . 5 . . . . 2 . . 4 1 Garrison Access Hacks 1 | . . . . . . . . . . . . . . . . . . . . . . . . . . . . 1 Seal Access 1 | . . . . . . . . . . . . . . . . . . . . . . . . . . . . 1 Unauthorized Hacks 78 | . 9 11 12 6 15 . . 3 . . 2 2 . . . . . . 2 . . . . 1 1 . 5 9 Terminals 67 | . 8 11 10 6 8 . . 3 . . 2 2 . . . . . . 2 . . . . 1 1 . 5 8 Assimilate 3 | . . . . . . . . . . . . . . . . . . . . . . . . 1 . . 2 . Botnet 27 | . 3 4 4 3 2 . . 1 . . 1 1 . . . . . . 2 . . . . . 1 . 2 3 Operators 2 | . . 1 . . . . . 1 . . . . . . . . . . . . . . . . . . . . Skim 35 | . 5 6 6 3 6 . . 1 . . 1 1 . . . . . . . . . . . . . . 1 5 Fabricators . | . . . . . . . . . . . . . . . . . . . . . . . . . . . . . Repair Stations . | . . . . . . . . . . . . . . . . . . . . . . . . . . . . . Recycling Units 10 | . 1 . 2 . 7 . . . . . . . . . . . . . . . . . . . . . . . Reject 3 | . 1 . 2 . . . . . . . . . . . . . . . . . . . . . . . . . Tunnel 7 | . . . . . 7 . . . . . . . . . . . . . . . . . . . . . . . Scanalyzers 1 | . . . . . . . . . . . . . . . . . . . . . . . . . . . . 1 Researchers 1 | . . . . . . . . . . . . . . . . . . . . . . . . . . . . 1 Garrison Access . | . . . . . . . . . . . . . . . . . . . . . . . . . . . . . Data Cores Recovered 3 | . 1 . . . . . . . . . . . . . . . . . . . . . . . . . 1 1 Used 1 | . . . . . . . . . . . . . . . . . . . . . . . . . . . . 1 Hacking Detections 93 | . 8 15 10 6 6 . 5 3 1 . 3 1 . . . . 1 . 10 . . . . 3 5 . 7 9 Full Trace Events 8 | . . . . . 1 . 1 . . . . . . . . . 1 . 4 . . . . . 1 . . . Feedback Events . | . . . . . . . . . . . . . . . . . . . . . . . . . . . . . Feedback Blocked . | . . . . . . . . . . . . . . . . . . . . . . . . . . . . . Robot Schematics Acquired . | . . . . . . . . . . . . . . . . . . . . . . . . . . . . . Robots Built . | . . . . . . . . . . . . . . . . . . . . . . . . . . . . . Authchips . | . . . . . . . . . . . . . . . . . . . . . . . . . . . . . Time . | . . . . . . . . . . . . . . . . . . . . . . . . . . . . . Total Robot Build Rating . | . . . . . . . . . . . . . . . . . . . . . . . . . . . . . Part Schematics Acquired 8 | . . 1 . . 1 . . . . . . . . . 4 . 1 . 1 . . . . . . . . . Parts Built 5 | . . . . . . . 1 . . . . . . . . . . . 4 . . . . . . . . . Authchips . | . . . . . . . . . . . . . . . . . . . . . . . . . . . . . Time 153 | . . . . . . . 51 . . . . . . . . . . . 102 . . . . . . . . . Total Part Build Rating 5 | . . . . . . . 1 . . . . . . . . . . . 4 . . . . . . . . . Part Studies Acquired 17 | . . 2 1 . . . . . . . . . . . . . 2 . 5 . . . . 2 . . 4 1 Parts Repaired 7 | . 1 2 . 2 . . . . . . . . . . . . . . . . . . . . . . . 2 Time 217 | . 13 58 . 58 . . . 38 . . . . . . . . . . . . . . . . . . . 50 Parts Recycled . | . . . . . . . . . . . . . . . . . . . . . . . . . . . . . Recycled Matter . | . . . . . . . . . . . . . . . . . . . . . . . . . . . . . Retrieved Matter . | . . . . . . . . . . . . . . . . . . . . . . . . . . . . . Retrieved Components 22 | . 9 2 11 . . . . . . . . . . . . . . . . . . . . . . . . . Parts Scanalyzed 3 | . . 1 . . . . . . . . . . . . . . 1 . 1 . . . . . . . . . Part Schematics Acquired 3 | . . 1 . . . . . . . . . . . . . . 1 . 1 . . . . . . . . . Parts Damaged 1 | . . . . . . . . . . . . . . . . . 1 . . . . . . . . . . . Bothacking | -11 -10 -9 -8 -8 -8 -8 -6 -6 -6 -6 -6 -5 -5 -5 -5 -4 -4 -4 -4 -4 -4 -4 -3 -3 -3 -3 -2 -2 ------------ Run | Yrd Mat Mat Mat Sto Rec Scr Fac Ext Cet Arc Hub Fac Upp Upp Zhi Pro Fac Was Fac Upp Upp War Pro Res Arm Lab Res Qua Used RIF Installer . | . . . . . . . . . . . . . . . . . . . . . . . . . . . . . Robots Hacked . | . . . . . . . . . . . . . . . . . . . . . . . . . . . . . Non-combat . | . . . . . . . . . . . . . . . . . . . . . . . . . . . . . Combat . | . . . . . . . . . . . . . . . . . . . . . . . . . . . . . Robot Hacks Applied . | . . . . . . . . . . . . . . . . . . . . . . . . . . . . . Relay Couplers Released . | . . . . . . . . . . . . . . . . . . . . . . . . . . . . . Fabnet Peak Effective % . | . . . . . . . . . . . . . . . . . . . . . . . . . . . . . Robots Rewired 17 | . . . . . . . . 10 . . . . . . . . . . . . . 5 . . 2 . . . Allies Hacked . | . . . . . . . . . . . . . . . . . . . . . . . . . . . . . Hacks Repelled . | . . . . . . . . . . . . . . . . . . . . . . . . . . . . . Allies | -11 -10 -9 -8 -8 -8 -8 -6 -6 -6 -6 -6 -5 -5 -5 -5 -4 -4 -4 -4 -4 -4 -4 -3 -3 -3 -3 -2 -2 -------- Run | Yrd Mat Mat Mat Sto Rec Scr Fac Ext Cet Arc Hub Fac Upp Upp Zhi Pro Fac Was Fac Upp Upp War Pro Res Arm Lab Res Qua Total Allies 38 | . . . . 10 . . . 14 5 . . . . . . . . . . . . 5 . 1 2 . 1 . Largest Group 10 | . . . . 10 . . . 6 8 3 1 . . . . . . . . . . 5 . 1 2 . 1 . Highest-Rated Group 680 | . . . . 173 . . . 282 680 220 96 . . . . . . . . . . 298 . 26 98 . 45 . Highest-Rated Ally 159 | . . . . 29 . . . 159 152 96 96 . . . . . . . . . . 64 . 26 56 . 45 . Total Orders 1 | . . . . . . . . 1 . . . . . . . . . . . . . . . . . . . . EXPLORE 1 | . . . . . . . . 1 . . . . . . . . . . . . . . . . . . . . Ally Attacks 322 | . . . . 82 . . . 120 62 27 4 . . . . . . . . . . 8 . . 19 . . . Total Damage 7981 | . . . . 951 . . . 2581 2010 1052 92 . . . . . . . . . . 330 . . 965 . . . Kills 52 | . . . . 14 . . . 20 10 3 . . . . . . . . . . . 2 . . 3 . . . Allies Corrupted . | . . . . . . . . . . . . . . . . . . . . . . . . . . . . . Allies Melted . | . . . . . . . . . . . . . . . . . . . . . . . . . . . . . Intel | -11 -10 -9 -8 -8 -8 -8 -6 -6 -6 -6 -6 -5 -5 -5 -5 -4 -4 -4 -4 -4 -4 -4 -3 -3 -3 -3 -2 -2 ------- Run | Yrd Mat Mat Mat Sto Rec Scr Fac Ext Cet Arc Hub Fac Upp Upp Zhi Pro Fac Was Fac Upp Upp War Pro Res Arm Lab Res Qua Active Infowar (turns) 16629 | 27 370 2438 1191 1462 650 2208 368 1184 762 348 580 487 108 174 191 110 108 23 385 309 149 606 172 355 865 297 224 478 Optics 1835 | . . . . . . . . . . . . . . . . . . . . . . . . . 836 297 224 478 Sensors 4227 | . . . . . . 138 368 144 . . . . . . . . . . 311 309 149 606 172 355 852 160 224 439 Terrain 6238 | . . . 1003 1462 650 2070 . . . . . . . . . . 72 6 252 62 149 280 . 232 . . . . Structural 7940 | . . 2438 188 . . 196 368 970 7 . 165 378 . . . . . . 103 309 149 606 172 251 815 160 224 441 Traps 2 | . . . . . . . . . . . . . 2 . . . . . . . . . . . . . . . Seismic 397 | 27 370 . . . . . . . . . . . . . . . . . . . . . . . . . . . Machine Analysis 8275 | . . . . . . . 360 1184 762 348 580 487 108 174 191 110 108 23 385 309 149 606 172 355 865 297 224 478 Cloaking 212 | . . . . . . . . . . . . . . . . . . 18 194 . . . . . . . . . Jamming 3682 | . . . . . . . . . . . . . . . . . 24 6 360 309 149 606 172 355 846 162 224 469 ECM 491 | . . . . . . . . . . . . . . . . . . . . . . . . . 484 6 1 . Robot Analysis Total 4 | . . . . . . . . . . . . . . . 4 . . . . . . . . . . . . . Derelict Logs Recovered 7 | . . . . . . . . . . . . . 1 2 . 2 . . . 2 . . . . . . . . Drone Launches 3 | . . . . . . . . 3 . . . . . . . . . . . . . . . . . . . . Drone Recoveries 2 | . . . . . . . . 2 . . . . . . . . . . . . . . . . . . . . Exploration | -11 -10 -9 -8 -8 -8 -8 -6 -6 -6 -6 -6 -5 -5 -5 -5 -4 -4 -4 -4 -4 -4 -4 -3 -3 -3 -3 -2 -2 ------------- Run | Yrd Mat Mat Mat Sto Rec Scr Fac Ext Cet Arc Hub Fac Upp Upp Zhi Pro Fac Was Fac Upp Upp War Pro Res Arm Lab Res Qua Turns Passed 18858 | 119 2027 2915 1194 1462 650 2208 368 1184 762 348 580 487 108 174 191 110 108 23 385 309 149 606 172 355 865 297 224 478 Spaces Moved 14804 | 48 732 1268 490 671 509 1316 227 700 301 221 291 281 261 381 194 301 263 72 747 759 368 771 416 591 777 314 575 959 Core 57 | 2 . . . . . . . . . . . 22 . . . . . . . . . . . 4 . . . 29 Treads 1508 | 46 732 730 . . . . . . . . . . . . . . . . . . . . . . . . . . Legs 5505 | . . 538 490 671 509 1316 227 700 301 221 291 241 . . . . . . . . . . . . . . . . Wheels . | . . . . . . . . . . . . . . . . . . . . . . . . . . . . . Hover 341 | . . . . . . . . . . . . . . . . . . . . . . 5 . . 336 . . . Flight 7393 | . . . . . . . . . . . . 18 261 381 194 301 263 72 747 759 368 766 416 587 441 314 575 930 Fastest Speed 18 | 50 160 120 185 120 120 120 120 120 120 120 105 32 32 32 32 32 29 29 29 34 37 36 33 33 18 24 21 20 Average Speed 83 | 155 160 143 185 152 120 120 120 120 120 120 115 115 32 37 84 32 31 29 30 36 37 37 34 38 41 24 21 30 Slowest Speed 330 | 160 240 190 190 185 120 120 120 190 120 120 190 330 32 112 112 32 32 29 34 37 37 120 36 100 170 24 24 250 Overloaded Moves . | . . . . . . . . . . . . . . . . . . . . . . . . . . . . . Propulsion Burnouts . | . . . . . . . . . . . . . . . . . . . . . . . . . . . . . Robots Hopped 31 | . . . . . . . . . . . . 4 . . . . . . 1 . 1 2 . 17 . . 1 5 Potential Cave-ins 5 | . . . . . . . . . . . . . . . . . . . . . . . . . 3 . 2 . Cave-ins Triggered . | . . . . . . . . . . . . . . . . . . . . . . . . . . . . . Teleports 1 | . . . . . . . . . . . . . . . . . . . . . . . . . 1 . . . Exploration Rate (%) 57 | 4 94 88 38 76 91 82 6 85 76 97 35 9 51 54 61 54 8 78 22 81 54 93 51 23 54 96 21 74 Regions Visited 28 Branch Regions 18 Pre-discovered Areas 28 | . 3 3 3 . 8 5 . . . . . . . . 3 1 . . . 1 . . . . . . . 1 Known Exits Taken 22 | . 1 1 1 1 1 1 1 . . . 1 1 1 1 1 1 . . 1 1 1 1 1 1 1 1 1 . Unknown Exits Taken 4 | 1 . . . . . . . 1 1 1 . . . . . . . . . . . . . . . . . . Scrap Searched 28 | . . . . . . 9 . . . . . . 1 6 . 5 . . . 3 1 . 3 . . . . . Spaces Dug 127 | . . 4 2 5 . . 2 . . . 3 3 2 5 . 1 3 . 11 1 1 . 5 13 46 . 16 4 Terrain Destroyed 198 | . . 4 7 12 . . 2 20 . . 3 3 2 5 . 1 3 . 11 1 1 . 5 13 65 . 16 24 Melee 95 | . . 4 2 5 . . 2 . . . 3 3 2 5 . 1 3 . 11 1 1 . 5 13 14 . 16 4 Projectile 12 | . . . 5 7 . . . . . . . . . . . . . . . . . . . . . . . . AOE 91 | . . . . . . . . 20 . . . . . . . . . . . . . . . . 51 . . 20 Terrain Rammed . | . . . . . . . . . . . . . . . . . . . . . . . . . . . . . Walls Destroyed . | . . . . . . . . . . . . . . . . . . . . . . . . . . . . . Machines Disabled . | . . . . . . . . . . . . . . . . . . . . . . . . . . . . . Actions | -11 -10 -9 -8 -8 -8 -8 -6 -6 -6 -6 -6 -5 -5 -5 -5 -4 -4 -4 -4 -4 -4 -4 -3 -3 -3 -3 -2 -2 --------- Run | Yrd Mat Mat Mat Sto Rec Scr Fac Ext Cet Arc Hub Fac Upp Upp Zhi Pro Fac Was Fac Upp Upp War Pro Res Arm Lab Res Qua Total 20132 | 83 1427 2069 685 979 535 1953 290 998 685 274 425 402 277 403 212 311 282 73 876 785 373 1085 436 656 1269 527 641 1121 Wait 3632 | 21 565 501 94 175 16 594 28 176 328 16 18 69 6 1 . . 6 . 90 15 . 233 12 27 364 192 22 63 Move 14720 | 47 731 1267 489 670 508 1315 226 699 300 220 290 273 260 380 193 300 263 71 744 758 365 766 415 559 776 313 572 950 Hop 26 | . . . . . . . . . . . . 3 . . . . . . 1 . 1 2 . 14 . . 1 4 Pick Up 194 | 3 19 38 15 8 . 14 8 20 13 6 4 7 1 5 1 1 . . 4 2 1 3 . 2 11 1 1 6 Fast Attach 170 | 7 5 13 2 5 . . . 7 5 1 9 8 2 3 6 5 3 1 6 2 1 2 1 6 18 9 11 32 Attach 87 | . 7 8 4 . . 3 4 13 5 2 7 11 1 1 . 1 1 . . 2 . 1 . 4 6 . 2 4 Detach 14 | . . . . . . 1 . 1 1 . 1 . 1 . . . 1 . 2 . . . . 3 1 . 1 1 Swap 146 | 2 10 38 13 14 2 8 1 13 4 2 11 1 . . . . 3 . 4 1 . 5 . 5 5 1 . 3 Drop 256 | . 3 47 18 18 1 18 . 17 14 6 5 5 1 5 7 3 2 1 8 2 1 5 1 5 16 7 9 31 Fire 398 | 3 83 152 43 79 8 . . 24 1 . . . . . . . . . . . . . . . 3 1 . 1 Melee 361 | . . 5 4 5 . . 23 21 14 21 70 23 5 8 5 1 3 . 17 3 4 . 7 31 40 3 22 26 Ram 2 | . . . . . . . . . . . . 2 . . . . . . . . . . . . . . . . Kick 20 | . . . 3 5 . . . 2 . . 10 . . . . . . . . . . . . . . . . . Crush 4 | . 4 . . . . . . . . . . . . . . . . . . . . . . . . . . . Escape Stasis 11 | . . . . . . . . 5 . . . . . . . . . . . . . . . . 6 . . . Rewire 91 | . . . . . . . . . . . . . . . . . . . . . . 68 . . 23 . . . Trap . | . . . . . . . . . . . . . . . . . . . . . . . . . . . . . Miscellaneous . | . . . . . . . . . . . . . . . . . . . . . . . . . . . . . Route ------- -11/Scrapyard -10/Materials (discovered 4 exits: *Mat x3 / [*Min]) -9/Materials (discovered 4 exits: *Mat x3 / *Min) -8/Materials (discovered 2 exits: *Sto x2) -8/Storage (discovered 2 exits: [*Fac] / *Rec) -8/Recycling (discovered 2 exits: *Fac / *Scr) -8/Scraptown (discovered 2 exits: *Fac x2) -6/Factory (discovered 8 exits: Fac x4 / Low x2 / *Ext x2) -6/Extension (discovered 3 exits: *Fac x2 / *Cet) -6/Cetus (discovered 2 exits: *Fac / [*Arc]) -6/Archives (discovered 3 exits: *Fac / *Hub x2) -6/Hub_04(d) -5/Factory (discovered 5 exits: Fac x3 / *Upp x2) -5/Upper Caves -5/Upper Caves (discovered 2 exits: Fac / *Zhi) -5/Zhirov -4/Proximity Caves -4/Factory -4/Waste -4/Factory (discovered 2 exits: *Upp x2) -4/Upper Caves -4/Upper Caves -4/Warlord -3/Proximity Caves -3/Research (discovered 4 exits: Res x2 / *Arm / Tes) -3/Armory (discovered 2 exits: *Res / *Lab) -3/Lab -2/Research (discovered 2 exits: *Qua x2) -2/Quarantine History --------- Turn | Location | Event 35 | -11/Scrapyard | Discovered new exit (range 15) 120 | -11/Scrapyard | Entered Materials 200 | -10/Materials | Discovered new exit (range 16) 306 | -10/Materials | Build established: Mutant 763 | -10/Materials | Core integrity fell below 50% 820 | -10/Materials | Lost 4 parts (1p1n2w) 1055 | -10/Materials | Build established: Scavenger-Mutant 1185 | -10/Materials | Repaired Lgt. Treads 1195 | -10/Materials | Discovered new exit (range 4) 1358 | -10/Materials | Build established: Mutant 1479 | -10/Materials | Identified exit to Materials 1759 | -10/Materials | Learned location of 2 exits from Subcaves 1926 | -10/Materials | Learned 2 Mines zone layouts 1959 | -10/Materials | Learned location of Mines (-10) 2016 | -10/Materials | Learned location of Storage (-8) 2061 | -10/Materials | Learned 2 Mines zone layouts 2147 | -10/Materials | Entered another Materials area 2147 | -9/Materials | Evolved 2 slots: Propulsion x1, Utility x1 2148 | -9/Materials | Identified exit to Mines 2599 | -9/Materials | Build established: Scavenger-Mutant 2615 | -9/Materials | Discovered new exit (range 5) 3106 | -9/Materials | Build established: Mutant 3163 | -9/Materials | Central database locked down 3648 | -9/Materials | Repaired Structural Scanner 3895 | -9/Materials | Discovered new exit (range 5) 3991 | -9/Materials | Core integrity fell below 50% 4335 | -9/Materials | Repaired Imp. Aluminum Leg 4566 | -9/Materials | Discovered new exit (range 11) 4616 | -9/Materials | Identified exit to Materials 4711 | -9/Materials | Learned Storage trap positions 4766 | -9/Materials | Loaded intel: 22 trap records 4864 | -9/Materials | Build established: Scavenger-Mutant 4865 | -9/Materials | Loaded intel: 12 terminal locations 4940 | -9/Materials | Learned location of Mines (-8) 4986 | -9/Materials | Learned Storage emergency access door positions 5062 | -9/Materials | Entered another Materials area 5062 | -8/Materials | Evolved 2 slots: Utility x2 5092 | -8/Materials | Discovered new exit (range 13) 5206 | -8/Materials | Identified exit to Storage 5908 | -8/Materials | Build established: Mutant 5955 | -8/Materials | Learned location of 3 exits from Factory 6037 | -8/Materials | Learned 4 Recycling zone layouts 6066 | -8/Materials | Learned location of Extension (-6) 6108 | -8/Materials | Learned location of Recycling (-8) 6143 | -8/Materials | Learned Factory trap positions 6256 | -8/Materials | Entered Storage 6257 | -8/Storage | Loaded intel: 23 trap records 6559 | -8/Storage | Repaired Aluminum Leg+ 6593 | -8/Storage | Repaired Imp. Aluminum Leg 6855 | -8/Storage | Assisted by bots powering up and referring to "LRC-V3" 7029 | -8/Storage | Used back door to open Recycling access 7029 | -8/Storage | Discovered new exit (range 5) 7035 | -8/Storage | Identified exit to Recycling 7153 | -8/Storage | Build established: Commander-Mutant 7204 | -8/Storage | Discovered new exit (range 16) 7282 | -8/Storage | Lost 3 allies 7622 | -8/Storage | Garrison activated, responded to threat 7637 | -8/Storage | Lost 3 allies 7718 | -8/Storage | Entered Recycling 7719 | -8/Recycling | Met a Zionite searching for Scraptown 7891 | -8/Recycling | Build established: Mutant 7978 | -8/Recycling | Scanned before Scraplab entrance 8220 | -8/Recycling | Discovered new exit (range 16) 8237 | -8/Recycling | Identified exit to Factory 8358 | -8/Recycling | Entered Scraplab 8367 | -8/Recycling | Discovered new exit (range 2) 8367 | -8/Recycling | Identified exit to Scraptown 8368 | -8/Recycling | Entered Scraptown 8368 | -8/Scraptown | System corruption cleaned by C-Scrubber 8534 | -8/Scraptown | Visited Shadow of the Wyrm 8544 | -8/Scraptown | Visited Cyclists 8685 | -8/Scraptown | Heard Great Nut preacher, LISTEN AND RECITE! 8795 | -8/Scraptown | Visited Bundlers 8879 | -8/Scraptown | Visited Comm Corps 8929 | -8/Scraptown | Visited Observation Area 8945 | -8/Scraptown | Visited Junk Repository 9002 | -8/Scraptown | Visited UFD Registry 9002 | -8/Scraptown | Registered with UFD as "Microwarp" 9152 | -8/Scraptown | Visited Botcube Research 9179 | -8/Scraptown | Visited Scrap Suit Storage 9196 | -8/Scraptown | Visited LU-1G1's Boring Crew 9304 | -8/Scraptown | Visited Curators Association 9341 | -8/Scraptown | Visited Scrapoid Pod Storage 9885 | -8/Scraptown | Visited DA-N13 Charitable Foundation 9890 | -8/Scraptown | Found DCF Scrap (28 items) 9942 | -8/Scraptown | Visited Chapter 10 9977 | -8/Scraptown | Visited A0-MCA Data Center 9984 | -8/Scraptown | Given an A- rating by A0-MCA 9991 | -8/Scraptown | Found A0-MCA's Component Scanner 10017 | -8/Scraptown | Visited Sword Containment 10051 | -8/Scraptown | Visited Cartography Club 10186 | -8/Scraptown | Learned location of Zion (-7) 10186 | -8/Scraptown | Learned 12 Materials zone layouts 10186 | -8/Scraptown | Learned 16 Factory zone layouts 10186 | -8/Scraptown | Learned 12 Research zone layouts 10186 | -8/Scraptown | Learned 16 Lower Caves zone layouts 10186 | -8/Scraptown | Learned 12 Upper Caves zone layouts 10186 | -8/Scraptown | Learned 20 Upper Caves zone layouts 10186 | -8/Scraptown | Learned 24 Proximity Caves zone layouts 10186 | -8/Scraptown | Learned Storage emergency access door positions 10186 | -8/Scraptown | Learned location of 2 exits from Factory 10186 | -8/Scraptown | Learned location of 3 exits from Upper Caves 10325 | -8/Scraptown | Found Deep Structural Scanner 10381 | -8/Scraptown | Found Prototype Slashing Weapon 10382 | -8/Scraptown | Identified Companion Sword 10490 | -8/Scraptown | Met Optimus 10490 | -8/Scraptown | Accepted into 0bPrime 10576 | -8/Scraptown | Entered Factory 10576 | -6/Factory | Evolved 4 slots: Power x1, Propulsion x1, Utility x2 10577 | -6/Factory | Identified exit to Factory 10577 | -6/Factory | Identified exit to Lower Caves 10578 | -6/Factory | Identified exit to Extension 10580 | -6/Factory | Loaded intel: 86 trap records 10659 | -6/Factory | Fabricated Hcp. Storage Unit (x1) 10744 | -6/Factory | Build established: Assassin 10944 | -6/Factory | Entered Extension 11334 | -6/Extension | Rescued A7 11336 | -6/Extension | Attached CPS modules to A7. 11344 | -6/Extension | Energy Cycler disabled 11344 | -6/Extension | Rescued a captive Derelict 11344 | -6/Extension | Rescued a captive Derelict 11344 | -6/Extension | Rescued a captive Derelict 11344 | -6/Extension | Rescued a captive Derelict 11344 | -6/Extension | Rescued a captive Derelict 11346 | -6/Extension | Rescued a captive Derelict 11346 | -6/Extension | Rescued a captive Derelict 11347 | -6/Extension | Rescued a captive Derelict 11375 | -6/Extension | Lost 3 allies 11386 | -6/Extension | Lost 3 parts (2n1u) 11491 | -6/Extension | Build established: Scavenger-Mutant 11793 | -6/Extension | Spotted B-75 Beast 11805 | -6/Extension | Spotted B-75 Beast 11808 | -6/Extension | Discovered exit to Factory (range 13) 11824 | -6/Extension | Allies destroyed B-75 Beast 11838 | -6/Extension | Allies destroyed B-75 Beast 11867 | -6/Extension | Lost 6 parts (2p1n2u1w) 12083 | -6/Extension | Discovered new exit (range 6) 12128 | -6/Extension | Entered Cetus 12128 | -6/Cetus | Accompanied by 5 allies (A7) 12133 | -6/Cetus | Acquired a Cetus Manufacturing Module code from A7 12159 | -6/Cetus | Spotted Cetus Guard 12159 | -6/Cetus | Spotted Cetus Guard 12162 | -6/Cetus | Spotted Cetus Guard 12162 | -6/Cetus | Spotted Cetus Guard 12173 | -6/Cetus | Allies destroyed Cetus Guard 12181 | -6/Cetus | Core integrity fell below 50% 12182 | -6/Cetus | Allies destroyed Cetus Guard 12186 | -6/Cetus | Allies destroyed Cetus Guard 12190 | -6/Cetus | Allies destroyed Cetus Guard 12274 | -6/Cetus | Escorted A7 to Cetus Mainframe 12287 | -6/Cetus | Started Cetus Manufacturing Module 12312 | -6/Cetus | Manufactured an Enhanced Grunt 12337 | -6/Cetus | Manufactured an Enhanced Grunt 12362 | -6/Cetus | Manufactured an Enhanced Grunt 12387 | -6/Cetus | Manufactured an Enhanced Grunt 12412 | -6/Cetus | Manufactured an Enhanced Grunt 12441 | -6/Cetus | Discovered new exit (range 16) 12500 | -6/Cetus | Spotted Cetus Guard 12500 | -6/Cetus | Spotted Cetus Guard 12503 | -6/Cetus | Spotted Cetus Guard 12503 | -6/Cetus | Spotted Cetus Guard 12506 | -6/Cetus | Allies destroyed Cetus Guard 12510 | -6/Cetus | Discovered exit to Factory (range 16) 12515 | -6/Cetus | Allies destroyed Cetus Guard 12525 | -6/Cetus | Allies destroyed Cetus Guard 12525 | -6/Cetus | Allies destroyed Cetus Guard 12526 | -6/Cetus | Met Revision 17 12545 | -6/Cetus | Lost 4 allies 12558 | -6/Cetus | Found Exp. Thermal Shield 12623 | -6/Cetus | Murdered A7 12624 | -6/Cetus | Extracted ID and sensor layout for unrecognized location from A7's data core 12639 | -6/Cetus | Found Med. Regenerative Plating 12878 | -6/Cetus | Security sweep announced 12890 | -6/Cetus | Entered Archives 12890 | -6/Archives | Accompanied by 3 allies 12947 | -6/Archives | Discovered new exit (range 15) 13107 | -6/Archives | Discovered new exit (range 15) 13132 | -6/Archives | Discovered exit to Factory (range 15) 13238 | -6/Archives | Entered Hub_04(d) 13238 | -6/Hub_04(d) | Accompanied by 1 ally 13455 | -6/Hub_04(d) | Garrison activated, responded to threat 13578 | -6/Hub_04(d) | Lost 5 parts (1p2n2u) 13621 | -6/Hub_04(d) | Core integrity fell below 20% 13679 | -6/Hub_04(d) | Lost 3 parts (1p1n1u) 13800 | -6/Hub_04(d) | Discovered exit to Factory (range 12) 13818 | -6/Hub_04(d) | Entered Factory 13818 | -5/Factory | Evolved 2 slots: Utility x2 13819 | -5/Factory | Identified exit to Upper Caves 13820 | -5/Factory | Identified exit to Factory 14062 | -5/Factory | Lost 3 parts (2n1u) 14267 | -5/Factory | Core integrity fell below 50% 14289 | -5/Factory | Lost 13 parts (2p8n3u) 14296 | -5/Factory | Core integrity fell below 20% 14305 | -5/Factory | Entered Upper Caves 14306 | -5/Upper Caves | Identified exit to Upper Caves 14389 | -5/Upper Caves | Learned Factory interactive machine intel 14389 | -5/Upper Caves | Spotted B-75 Beast 14413 | -5/Upper Caves | Entered another Upper Caves area 14414 | -5/Upper Caves | Identified exit to Zhirov 14476 | -5/Upper Caves | Learned Factory non-interactive machine intel 14528 | -5/Upper Caves | Entered an active Warlord outpost 14532 | -5/Upper Caves | Learned Research terminal intel 14532 | -5/Upper Caves | Learned Armory garrison access intel 14550 | -5/Upper Caves | Learned Factory terminal intel 14587 | -5/Upper Caves | Entered Zhirov 14587 | -5/Zhirov | Discovered new exit (range 3) 14589 | -5/Zhirov | Identified exit to Proximity Caves 14608 | -5/Zhirov | Met Zhirov 14647 | -5/Zhirov | Zhirov requested help retrieving the SGEMP Prototype 14669 | -5/Zhirov | Found Alien Artifact 14669 | -5/Zhirov | Identified Integrated Reactor 14669 | -5/Zhirov | Installed Integrated Reactor, increased core energy generation (+10) 14754 | -5/Zhirov | Found Alien Artifact 14778 | -5/Zhirov | Entered Proximity Caves 14780 | -4/Proximity Caves | Spotter reported a threat 14781 | -4/Proximity Caves | Spotter reported a threat 14833 | -4/Proximity Caves | Spotter reported a threat 14886 | -4/Proximity Caves | Spotter reported a threat 14888 | -4/Proximity Caves | Entered Factory 14888 | -4/Factory | Evolved 2 slots: Propulsion x1, Utility x1 14889 | -4/Factory | Loaded intel: 205 non-interactive machine locations 14890 | -4/Factory | Loaded intel: 54 interactive machine locations 14891 | -4/Factory | Loaded intel: 26 terminal locations 14972 | -4/Factory | Central database locked down 14996 | -4/Factory | Sucked down chute 14996 | -4/Factory | Entered Waste 15009 | -4/Waste | Spotted C-40 Crusher 15011 | -4/Waste | EMP discharged 15011 | -4/Waste | Spotted C-40 Crusher 15014 | -4/Waste | Spotted C-40 Crusher 15014 | -4/Waste | Spotted C-40 Crusher 15014 | -4/Waste | Spotted C-40 Crusher 15016 | -4/Waste | Discovered new exit (range 10) 15019 | -4/Waste | Identified exit to Factory 15019 | -4/Waste | Entered Factory 15215 | -4/Factory | Fabricated Structural Scanner? 15242 | -4/Factory | Spotted B-86 Titan 15283 | -4/Factory | Fabricated Structural Scanner? 15398 | -4/Factory | Identified exit to Upper Caves 15404 | -4/Factory | Entered Upper Caves 15413 | -4/Upper Caves | Learned 4 Research zone layouts 15527 | -4/Upper Caves | Discovered new exit (range 7) 15528 | -4/Upper Caves | Identified exit to Upper Caves 15713 | -4/Upper Caves | Entered another Upper Caves area 15729 | -4/Upper Caves | Build established: Scientist-Ninja 15796 | -4/Upper Caves | Discovered new exit (range 13) 15800 | -4/Upper Caves | Identified exit to Warlord 15862 | -4/Upper Caves | Entered Warlord 15875 | -4/Warlord | System corruption cleaned by Quarantine Array 15883 | -4/Warlord | Discovered new exit (range 12) 15887 | -4/Warlord | Identified exit to Proximity Caves 16068 | -4/Warlord | Rebuked by Warlord 16086 | -4/Warlord | Learned Armory emergency access door positions 16086 | -4/Warlord | Learned Research stockpile data 16086 | -4/Warlord | Learned 4 Armory zone layouts 16086 | -4/Warlord | Learned Armory terminal intel 16086 | -4/Warlord | Learned Armory scanalyzer intel 16093 | -4/Warlord | Warlord's base attacked by MAIN.C 16118 | -4/Warlord | Found Prototype Energy Gun 16119 | -4/Warlord | Identified Vortex Shotgun 16238 | -4/Warlord | Opened side exit 16370 | -4/Warlord | Build established: Commander-Ninja 16443 | -4/Warlord | Warlord forces counterattacked 16460 | -4/Warlord | Spotted Striker 16460 | -4/Warlord | Spotted Striker 16464 | -4/Warlord | Allies destroyed Striker 16468 | -4/Warlord | Entered Proximity Caves 16469 | -3/Proximity Caves | Forged Quantum Companion 16494 | -3/Proximity Caves | Spotted B-86 Titan 16599 | -3/Proximity Caves | Discovered new exit (range 16) 16604 | -3/Proximity Caves | Identified exit to Research 16640 | -3/Proximity Caves | Entered Research 16640 | -3/Research | Evolved 2 slots: Utility x2 16641 | -3/Research | Identified exit to Armory 16642 | -3/Research | Identified exit to Research 16642 | -3/Research | Identified exit to Testing 16644 | -3/Research | Loaded intel: 24 terminal locations 16840 | -3/Research | Revision forces began assault on 0b10 16873 | -3/Research | Spotted B-86 Titan 16927 | -3/Research | Spotted B-86 Titan 16977 | -3/Research | Lost 9 parts (2p5n2u) 16995 | -3/Research | Entered Armory 16998 | -3/Armory | Loaded intel: 15 terminal locations 17026 | -3/Armory | Found Prototype Device 17026 | -3/Armory | Identified Exp. ECM Suite 17084 | -3/Armory | Found Fusion Bomb Launcher 17251 | -3/Armory | Build established: Infiltrator-Ninja 17300 | -3/Armory | Core integrity fell below 50% 17749 | -3/Armory | Assembled infested ambush trap array 17759 | -3/Armory | Spotted Armor Guard 17759 | -3/Armory | Spotted Armor Guard 17768 | -3/Armory | Spotted Armor Guard 17768 | -3/Armory | Spotted Armor Guard 17797 | -3/Armory | Identified Transdimensional Reconstructor 17797 | -3/Armory | Warped through subspace to slip node 17797 | -3/Armory | Discovered new exit (range 1) 17797 | -3/Armory | Identified exit to Lab 17860 | -3/Armory | Entered Lab 17860 | -3/Lab | Discovered exit to Research (range 9) 17863 | -3/Lab | Hidden lab's door opened automatically 17863 | -3/Lab | Sensor layout match revealed 17864 | -3/Lab | Gained access to the hidden lab's interior 17963 | -3/Lab | Found Integrated Reactor 17963 | -3/Lab | Installed Integrated Reactor, increased core energy generation (+10) 17968 | -3/Lab | Found Alien Artifact 17968 | -3/Lab | Identified Core Regenerator 17968 | -3/Lab | Used Core Regenerator, restored core integrity (+325) 17978 | -3/Lab | Found Med. Regenerative Plating 17982 | -3/Lab | Found Prototype Hackware 17982 | -3/Lab | Identified Quantum Router 17984 | -3/Lab | Found Prototype Energy Gun 17984 | -3/Lab | Identified Hyp. EM Gauss Rifle 17991 | -3/Lab | Unable to decrypt terminal 17991 | -3/Lab | Unable to decrypt terminal 17995 | -3/Lab | Found Prototype Special Weapon 17995 | -3/Lab | Identified Gui. Remote Datajack 18147 | -3/Lab | Found Alien Artifact 18147 | -3/Lab | Identified Core Reset Matrix 18147 | -3/Lab | Used Core Reset Matrix 18149 | -3/Lab | Detected by scanners 18150 | -3/Lab | Unable to decrypt terminal 18151 | -3/Lab | Sensed 1 artifact in vicinity 18151 | -3/Lab | Discovered exit to Research (range 6) 18155 | -3/Lab | Confronted by A5 18157 | -3/Lab | Entered Research 18157 | -2/Research | Evolved 2 slots: Propulsion x1, Utility x1 18257 | -2/Research | Identified exit to Quarantine 18381 | -2/Research | Entered Quarantine 18382 | -2/Quarantine | Detected hypermatrix surge 18382 | -2/Quarantine | Sensed 7 artifacts in vicinity 18398 | -2/Quarantine | Found Subatomic Replicator 18400 | -2/Quarantine | Forged Prototype Slashing Weapon 18428 | -2/Quarantine | Repaired Imp. Utility Shielding 18458 | -2/Quarantine | Build established: Hacker-Ninja 18460 | -2/Quarantine | Repaired Lrn. Sensor Array 18512 | -2/Quarantine | Cryocooling Duct disabled 18520 | -2/Quarantine | Central database locked down 18527 | -2/Quarantine | Ambient heat levels rising (+20) 18527 | -2/Quarantine | Non-combat units ordered to evacuate 18610 | -2/Quarantine | Found Unknown Protection 18610 | -2/Quarantine | Identified Adv. Powered Armor 18660 | -2/Quarantine | Spotted Alpha 7 18664 | -2/Quarantine | Found Sigix Terminator 18674 | -2/Quarantine | Intercept squad dispatched 18677 | -2/Quarantine | Spotted Tracker 18677 | -2/Quarantine | Spotted Tracker 18680 | -2/Quarantine | Destroyed Tracker 18685 | -2/Quarantine | Spotted Combat Programmer 18687 | -2/Quarantine | Spotted Combat Programmer 18689 | -2/Quarantine | Learned Section 7 stockpile data 18694 | -2/Quarantine | Destroyed Combat Programmer 18706 | -2/Quarantine | Destroyed Combat Programmer 18722 | -2/Quarantine | Found Prototype Processor 18722 | -2/Quarantine | Identified Exp. Targeting Computer 18734 | -2/Quarantine | Learned 8 Access zone layouts 18769 | -2/Quarantine | Learned 4 Research zone layouts 18797 | -2/Quarantine | Lost 10 parts (2p4n4u) 18814 | -2/Quarantine | Learned Access repair station intel 18816 | -2/Quarantine | Spotted Fortress 18817 | -2/Quarantine | System corruption reached 10% 18822 | -2/Quarantine | Learned Research recycling unit intel 18823 | -2/Quarantine | Learned location of 2 exits from Research 18830 | -2/Quarantine | Learned 4 Research zone layouts 18834 | -2/Quarantine | Intercept squad dispatched 18840 | -2/Quarantine | Core integrity fell below 50% 18846 | -2/Quarantine | Spotted Tracker 18847 | -2/Quarantine | Learned 8 Access zone layouts 18848 | -2/Quarantine | Spotted Tracker 18849 | -2/Quarantine | Spotted Tracker 18857 | -2/Quarantine | Core integrity fell below 20% 18859 | -2/Quarantine | Destroyed by P-80 Master with Gamma Rifle Last Messages --------------- The surroundings shift and blur. 18839_ Quantum Router destroyed. 18839_ Knocked back. 18842_ Lgt. Quantum Reactor+ destroyed. 18842_ Exp. Heat Sink destroyed. 18845_ Impulse Thruster Array+ destroyed. 18845_ Lrn. Sensor Array destroyed. 18846_ Structural Scanner destroyed. 18846_ P-80 Master resets P-80 Master, system corruption cleaned. 18847_ >> SKIM: Stored Access zone layouts (x8). Tracker: "THREAT CONFIRMED. DEPLOY COMBAT PROGRAMMER." 18853_ System corrupted: Matter fused (-5). The surroundings shift and blur. 18856_ Gravity Neutralizer destroyed. 18858_ Tracker Prototype Flight Unit temporarily disabled. 18858_ Imp. Transmission Jammer destroyed. 18859_ Graphene Brace destroyed. Map ----- +----------------------------------------------------+ | ?????????????????????????????????????????????????? | | ?????????????????????????????????????????????????? | | ?????????????????????????????????????????????????? | | ?????????????????????????????????????????????????? | | ?????????????????????????????????????????????????? | | ?????????????????????????????????????????????????? | | ?????????????????????????????????????????????????? | | ?????????????????????????????????????????????????? | | ?????????????????????????????????????????????????? | | ?????????????????????????????????????????????????? | | ?????????????????????????????????????????????????? | | ?????????????????????????????????????????????????? | | ?????????????????????????????????????????????????? | | ?????????????????????????????????????????????????? | | ?????????????????????????????????????????????????? | | ?????????????????????????????????????????????????? | | ?????????????????????????????????????????????????? | | ????#####????????????????????????????????????????? | | ############################################?????? | | ######;########################################### | | | | | | % p | | p p % | | F n % ss | | F % s@ | | ################################################## | | ##########################################???????? | | ?????????????????????????????????????????????????? | | ?????????????????????????????????????????????????? | | ?????????????????????????????????????????????????? | | ?????????????????????????????????????????????????? | | ?????????????????????????????????????????????????? | | ?????????????????????????????????????????????????? | | ?????????????????????????????????????????????????? | | ?????????????????????????????????????????????????? | | ?????????????????????????????????????????????????? | | ?????????????????????????????????????????????????? | | ?????????????????????????????????????????????????? | | ?????????????????????????????????????????????????? | | ?????????????????????????????????????????????????? | | ?????????????????????????????????????????????????? | | ?????????????????????????????????????????????????? | | ?????????????????????????????????????????????????? | | ?????????????????????????????????????????????????? | | ?????????????????????????????????????????????????? | | ?????????????????????????????????????????????????? | | ?????????????????????????????????????????????????? | | ?????????????????????????????????????????????????? | | ?????????????????????????????????????????????????? | +----------------------------------------------------+ Best States ------------- Heat Dissipation 75 Energy Generation 61 Energy Capacity 525 Matter Stores 300 Matter Capacity 300 Sight Range 23 Robot Scan Range 18 Terrain Scan Range 18 Terrain Scan Density 210 ECM Strength 3 Jamming Range 14 Cloak Strength 4 Additional Mass Support 12 Armor Coverage 450 Resistance: KI 20 Resistance: TH 30 Core Shielding 30 Propulsion Shielding 33 Utility Shielding 90 Phase Shifting 10 Evasion (%) 75 Melee Accuracy 31 Core Analysis 9 Recoil Reduction 3 Offensive Hacking 14 Defensive Hacking 25 Item Schematics ----------------- None Robot Schematics ------------------ None Fabricated ------------ Hcp. Storage Unit | x1 | -6/Factory Structural Scanner | x2 | -4/Factory Structural Scanner | x2 | -4/Factory Repaired ---------- Lgt. Treads | 7% | -10/Materials Structural Scanner | 50% | -9/Materials Imp. Aluminum Leg | 62% | -9/Materials Aluminum Leg | 21% | -8/Storage Imp. Aluminum Leg | 22% | -8/Storage Imp. Utility Shielding | 51% | -2/Quarantine Lrn. Sensor Array | 29% | -2/Quarantine Studied --------- Impulse Thruster Array | -2/Research | Hacked Lgt. Quantum Reactor | -2/Research | Hacked Mic. Antimatter Reactor | -2/Research | Hacked Particle Reactor | -2/Research | Hacked Field Propulsion Array | -2/Quarantine | Hacked Alien Tech Used ----------------- Integrated Reactor Transdimensional Reconstructor Core Regenerator Core Reset Matrix Subatomic Replicator Achievements -------------- None Challenges ------------ None Game ------ Seed ChargeIonMapper Manual? 0 Play Time 03:15:20 Cumulative 221.7 hours Start 2025.12.05 @ 17:14:20 End 2025.12.05 @ 20:53:19 Sessions 1 Manual Loads 0 Difficulty Rogue Special Mode None Game No. 151 Rogue 151 Adventurer 0 Explorer 0 Win Type - Total 7 Types 5/0/1/1/0/0/0/0/0/0 Lore% 85 Gallery% 76 Achievement% 60 Wizard Run 0 Options --------- Layout 1 ASCII 0 Keyboard 0 Movement Mouse Keybinds 0 Fullscreen 2 Font 24/Smallcaps Map View 50x35 Zoom Use 0% Tactical HUD 1 Map Filters NONE Filters NONE Steam 1 RUN: 9d53c65d-21bc-4b68-b61d-1f227233147b